bitfinex-derivatives/quotes_ETHF0:USTF0_20241007
["timestamp","ask_amount","ask_price","bid_price","bid_amount"]
[1728263148559,3.2078,2494.9,2494.4,3.2078]
[1728263149262,0.2806,2494.8,2494.1,3.2078]
[1728263152362,3.2078,2494.9,2494.1,3.2078]
[1728263152671,0.28059,2494.8,2494.1,3.2078]
[1728263152859,0.28061,2494.7,2494.1,3.2078]
[1728263153264,0.2806,2494.8,2494.1,3.2078]
[1728263153969,0.28061,2494.7,2494.1,3.2078]
[1728263154570,3.2078,2495.0,2494.1,3.2078]
[1728263154872,0.28061,2494.7,2494.1,3.2078]
[1728263155770,3.2078,2495.0,2494.2,0.28066]
[1728263155972,0.28058,2494.9,2494.4,3.2078]
[1728263156765,0.2806,2494.8,2494.4,3.2078]
[1728263156963,3.85,2495.0,2494.1,3.2078]
[1728263157171,0.28062,2494.6,2494.1,3.2078]
[1728263157770,0.2806,2494.8,2494.1,3.2078]
[1728263158168,3.85,2495.0,2494.1,3.2078]
[1728263158367,0.28061,2494.7,2494.1,3.2078]
[1728263159072,3.85,2495.0,2494.1,3.2078]
[1728263159269,0.2806,2494.8,2494.1,3.2078]
[1728263159676,0.2806,2494.7,2494.1,3.2078]
[1728263159874,3.2078,2495.1,2494.1,3.2078]
[1728263160176,0.28061,2494.7,2494.1,3.2078]
[1728263160475,0.2806,2494.8,2494.1,3.2078]
[1728263161370,3.90921,2495.1,2494.1,3.2078]
[1728263161574,0.28059,2494.9,2494.1,3.48846]
[1728263161873,0.28059,2494.9,2494.1,3.2078]
[1728263162170,0.2806,2494.8,2494.1,3.48847]
[1728263162378,3.2078,2495.1,2494.1,3.2078]
[1728263162581,0.28059,2494.9,2494.2,0.28066]
[1728263163277,3.2078,2495.1,2494.1,3.2078]
[1728263163573,3.2078,2495.1,2493.9,1.1392]
[1728263163574,3.2078,2495.1,2494.4,3.2078]
[1728263163774,0.28058,2494.9,2494.4,3.2078]
[1728263164173,0.28054,2495.3,2494.5,0.28063]
[1728263164369,5.12407322,2495.5,2494.7,3.2078]
[1728263164370,1.1922,2495.5,2494.7,3.2078]
[1728263164570,1.1411,2495.6,2495.0,3.2078]
[1728263165077,1.1411,2495.6,2495.0,3.48836]
[1728263165387,1.1909,2495.9,2495.0,3.2078]
[1728263165685,0.28049,2495.8,2495.0,3.2078]
[1728263166579,1.1329,2496.0,2495.3,3.2078]
[1728263166886,1.41336,2496.0,2495.3,3.2078]
[1728263167182,1.41336,2496.0,2495.4,1.2004]
[1728263167583,1.1329,2496.0,2495.4,1.2004]
[1728263167778,0.28049,2495.7,2495.0,3.2078]
[1728263167979,0.2805,2495.7,2495.0,3.2078]
[1728263168182,0.28051,2495.6,2495.0,3.2078]
[1728263168779,3.85,2495.9,2495.0,3.2078]
[1728263168780,0.2805,2495.7,2495.0,3.2078]
[1728263169187,3.85,2495.9,2495.3,3.2078]
[1728263169188,0.28047,2495.9,2495.3,3.2078]
[1728263169483,1.41336,2496.0,2495.3,3.2078]
[1728263170877,0.28049,2495.8,2495.3,3.2078]
[1728263172190,1.1329,2496.0,2495.3,3.2078]
[1728263172481,1.1329,2496.0,2495.3,3.48833]
[1728263172890,7.0578,2496.7,2495.6,3.2078]
[1728263173080,0.2804,2496.6,2495.9,3.2078]
[1728263173576,0.2804,2496.5,2495.9,3.2078]
[1728263173778,0.2804,2496.6,2495.9,3.2078]
[1728263174283,0.28041,2496.5,2495.9,3.2078]
[1728263174783,3.85,2496.7,2495.8,3.2078]
[1728263174993,3.85,2496.7,2495.7,1.2036]
[1728263175475,0.28044,2496.2,2495.7,1.2036]
[1728263175986,7.0578,2496.7,2495.7,1.2036]
[1728263176175,0.28043,2496.3,2495.7,1.2036]
[1728263176989,7.0578,2496.7,2495.7,1.2036]
[1728263177180,0.28044,2496.2,2495.7,1.2036]
[1728263177387,0.28043,2496.3,2495.7,1.2036]
[1728263178284,7.0578,2496.7,2495.7,1.2036]
[1728263178480,7.0578,2496.7,2495.5,3.2078]
[1728263178481,3.85,2496.1,2495.5,3.2078]
[1728263178683,0.2805,2495.7,2495.2,3.2078]
[1728263178894,2.3865,2496.0,2495.2,3.2078]
[1728263179184,2.66696,2496.0,2495.5,3.2078]
[1728263179391,2.3865,2496.0,2495.5,3.2078]
[1728263179575,0.28047,2495.9,2495.5,3.2078]
[1728263180183,2.3865,2496.0,2495.3,1.1562]
[1728263180388,0.28047,2495.9,2495.3,1.1562]
[1728263180584,2.3865,2496.0,2495.3,1.1562]
[1728263180895,0.28048,2495.8,2495.3,1.1562]
[1728263181193,2.3865,2496.0,2495.3,1.1562]
[1728263181487,0.28048,2495.9,2495.3,1.1562]
[1728263181688,0.28049,2495.8,2495.3,1.1562]
[1728263182482,0.28048,2495.9,2495.3,1.1562]
[1728263182684,0.28048,2495.8,2495.3,1.1562]
[1728263183389,0.2004707,2495.9,2495.2,3.2078]
[1728263183591,0.28048,2495.9,2495.2,3.2078]
[1728263183885,0.28048,2495.8,2495.2,3.2078]
[1728263184888,2.3865,2496.0,2495.2,3.2078]
[1728263185088,0.28048,2495.9,2495.2,3.48834]
[1728263185590,0.28049,2495.8,2495.2,3.2078]
[1728263186892,0.20397974,2495.9,2495.2,3.2078]
[1728263187094,0.20397974,2495.9,2494.8,3.2078]
[1728263187095,3.85,2495.5,2494.8,3.2078]
[1728263187283,3.2078,2495.9,2494.5,3.2078]
[1728263187284,3.85,2495.2,2494.5,3.2078]
[1728263187687,2.3405,2495.1,2494.5,3.2078]
[1728263187896,2.62107,2495.1,2494.5,3.2078]
[1728263188989,0.28058,2495.0,2494.5,3.2078]
[1728263189194,2.3405,2495.1,2494.5,3.2078]
[1728263189397,0.28058,2495.0,2494.5,3.2078]
[1728263189596,2.3405,2495.1,2494.3,2.3467]
[1728263189597,3.85,2494.9,2494.3,2.3467]
[1728263189798,3.85,2494.5,2494.0,1.2302]
[1728263189991,3.85,2494.5,2493.7,1.1335]
[1728263190298,4.13063,2494.5,2493.7,4.62201]
[1728263190485,3.85,2494.5,2493.7,4.62201]
[1728263190689,3.93796385,2494.7,2493.9,0.28069]
[1728263190690,0.28061,2494.7,2493.9,0.28069]
[1728263190893,0.28061,2494.7,2494.0,3.2078]
[1728263191197,3.85,2494.8,2494.0,3.2078]
[1728263191594,3.2078,2495.0,2494.1,1.2101]
[1728263191792,0.06284918,2494.9,2494.1,1.2101]
[1728263191998,3.2078,2495.0,2494.1,1.2101]
[1728263192190,0.28061,2494.7,2494.1,1.2101]
[1728263192390,0.2806,2494.8,2494.1,1.2101]
[1728263192587,0.2806,2494.7,2494.1,1.2101]
[1728263192792,0.28059,2494.9,2494.1,1.49077]
[1728263192992,0.28058,2495.0,2494.3,3.2078]
[1728263193292,0.28058,2495.0,2494.4,1.2261]
[1728263193497,0.28057,2495.0,2494.4,1.2261]
[1728263193695,2.3405,2495.1,2494.4,2.3975]
[1728263193989,0.28055,2495.2,2494.6,3.2078]
[1728263194190,0.28054,2495.3,2494.6,3.2078]
[1728263194393,0.28055,2495.2,2494.6,3.2078]
[1728263194986,5.0177,2495.4,2494.6,3.2078]
[1728263195194,0.34337756,2495.3,2494.6,3.2078]
[1728263195395,5.0177,2495.4,2494.6,3.2078]
[1728263195396,0.06283756,2495.2,2494.6,3.2078]
[1728263195591,0.28054,2495.3,2494.6,3.2078]
[1728263197090,3.85,2495.4,2494.6,3.2078]
[1728263197091,0.28055,2495.2,2494.6,3.2078]
[1728263197291,0.28056,2495.1,2494.6,3.2078]
[1728263198103,0.28058,2495.0,2494.6,3.2078]
[1728263198300,3.85,2495.4,2494.6,3.2078]
[1728263198598,0.28058,2494.9,2494.6,3.2078]
[1728263199393,0.28055,2495.2,2494.6,3.2078]
[1728263199603,0.28056,2495.1,2494.6,3.2078]
[1728263200201,3.85,2495.4,2494.6,3.2078]
[1728263200695,0.28055,2495.2,2494.6,3.2078]
[1728263201096,0.28054,2495.3,2494.6,3.2078]
[1728263201302,0.28054,2495.3,2494.6,3.48841]
[1728263201497,0.28054,2495.3,2494.6,3.2078]
[1728263201801,3.2078,2495.6,2494.6,3.2078]
[1728263202009,3.2078,2495.6,2494.4,2.3975]
[1728263202010,0.28051,2495.6,2494.9,3.2078]
[1728263202200,0.28051,2495.5,2495.0,1.2345]
[1728263202502,2.4228,2495.7,2495.0,1.2345]
[1728263202503,2.4228,2495.7,2495.1,1.2215]
[1728263202805,0.28045,2496.1,2495.3,0.28053]
[1728263202999,3.2078,2496.2,2495.3,1.1488]
[1728263203202,3.2078,2496.2,2495.5,3.2078]
[1728263203513,3.2078,2496.2,2495.5,3.48831]
[1728263203697,3.2078,2496.2,2495.6,1.515]
[1728263203901,0.28043,2496.3,2495.8,3.2078]
[1728263204094,0.28044,2496.2,2495.6,1.2345]
[1728263204294,1.1808,2496.4,2495.7,0.28049]
[1728263204503,3.85,2496.6,2495.8,4.70977]
[1728263204504,4.1304,2496.6,2495.8,4.70977]
[1728263204700,4.1304,2496.6,2495.9,1.2284]
[1728263204902,3.85,2496.6,2495.9,1.2284]
[1728263205298,0.2804,2496.5,2495.9,1.2284]
[1728263205694,3.85,2496.6,2495.9,1.50886]
[1728263206105,3.85,2496.6,2496.1,3.2078]
[1728263206501,1.1315,2496.8,2496.1,3.2078]
[1728263207205,1.1315,2496.8,2496.1,3.48824]
[1728263207409,1.1315,2496.8,2496.2,1.2237]
[1728263209807,1.1808,2497.0,2496.2,1.2237]
[1728263210009,3.2078,2497.4,2496.2,1.2237]
[1728263210010,3.2078,2497.4,2496.7,3.2078]
[1728263210202,3.2078,2497.4,2496.8,3.76157]
[1728263210398,3.2078,2497.4,2496.8,3.4812]
[1728263211298,1.1227,2497.5,2497.0,3.2078]
[1728263211504,0.28027,2497.7,2497.0,3.2078]
[1728263211701,5.0463,2497.9,2497.3,3.2078]
[1728263211904,1.1963,2497.9,2497.3,3.2078]
[1728263212106,0.28026,2497.8,2497.3,3.2078]
[1728263212412,3.85,2497.5,2496.9,3.2078]
[1728263212615,0.28031,2497.3,2496.9,3.2078]
[1728263212906,0.28031,2497.4,2496.9,3.2078]
[1728263213109,3.85,2497.5,2496.9,3.2078]
[1728263213110,0.28033,2497.1,2496.9,3.2078]
[1728263213308,0.28032,2497.3,2496.9,3.2078]
[1728263213505,0.28031,2497.3,2496.9,3.2078]
[1728263213704,3.85,2497.5,2496.9,3.2078]
[1728263213903,0.28037,2496.9,2496.3,4.4256]
[1728263214304,3.85,2496.9,2496.3,3.2078]
[1728263214513,0.28039,2496.6,2496.2,1.2157]
[1728263214710,4.04689031,2496.9,2496.2,1.2157]
[1728263214911,0.28042,2496.4,2496.2,1.2157]
[1728263215611,3.85,2496.6,2496.0,3.2078]
[1728263215817,1.32219031,2496.9,2495.7,1.2157]
[1728263215818,3.85,2496.3,2495.7,1.2157]
[1728263216017,0.28044,2496.2,2495.7,1.2157]
[1728263216322,0.28045,2496.1,2495.7,1.2157]
[1728263216513,0.28044,2496.2,2495.7,1.2157]
[1728263216710,0.28046,2496.1,2495.7,1.2157]
[1728263216913,0.28048,2495.9,2495.5,4.4435]
[1728263217809,0.2805,2495.6,2495.5,3.2078]
[1728263218014,3.85,2495.8,2495.0,1.1388]
[1728263218217,3.85,2495.8,2495.0,4.3466]
[1728263218218,0.28054,2495.3,2495.0,4.3466]
[1728263218717,3.85,2495.5,2495.0,4.3466]
[1728263218916,0.28053,2495.4,2495.0,4.3466]
[1728263219321,0.28054,2495.3,2495.0,3.2078]
[1728263219514,0.28053,2495.4,2495.0,3.2078]
[1728263220120,3.85,2495.5,2495.0,3.2078]
[1728263220416,7.0578,2495.8,2495.0,3.2078]
[1728263220619,3.48829,2495.8,2495.0,3.48837]
[1728263220924,3.2078,2495.8,2495.0,3.2078]
[1728263221223,3.48829,2495.8,2495.0,3.2078]
[1728263221410,3.2078,2495.8,2495.1,0.28056]
[1728263221614,3.2078,2495.8,2495.2,1.1588]
[1728263221815,0.06281991,2495.7,2495.2,1.1588]
[1728263222516,0.34331991,2495.7,2495.2,1.1588]
[1728263222712,0.06281991,2495.6,2495.2,1.1588]
[1728263222915,3.2078,2495.8,2495.2,1.1588]
[1728263222916,0.06281991,2495.5,2495.2,1.1588]
[1728263223117,3.2078,2495.8,2495.2,1.1588]
[1728263223321,0.28051,2495.6,2495.2,1.1588]
[1728263223526,3.2078,2495.8,2495.2,1.1588]
[1728263223527,0.34334161,2495.5,2495.2,1.1588]
[1728263223728,7.0578,2495.8,2495.0,3.2078]
[1728263224020,0.28052,2495.5,2494.9,1.1175]
[1728263224215,0.06282269,2495.4,2494.9,1.1175]
[1728263224420,0.28053,2495.4,2494.9,1.1175]
[1728263224619,0.12565503,2495.3,2494.9,1.1175]
[1728263224818,0.06282734,2495.3,2494.9,1.1175]
[1728263225013,0.28053,2495.4,2494.9,1.1175]
[1728263225216,0.06282787,2495.3,2494.9,1.1175]
[1728263225617,0.28053,2495.4,2494.9,1.1175]
[1728263225917,3.85,2495.1,2494.7,4.4413]
[1728263226120,3.85,2495.1,2494.7,3.2078]
[1728263226121,0.06282793,2495.0,2494.7,3.2078]
[1728263226432,0.28058,2494.9,2494.7,3.2078]
[1728263226720,4.13056,2495.1,2494.7,3.2078]
[1728263227035,0.34340961,2495.0,2494.7,3.2078]
[1728263227319,0.06283961,2494.9,2494.7,3.2078]
[1728263227519,4.13056,2495.1,2494.7,3.2078]
[1728263227727,0.34340852,2495.0,2494.7,3.2078]
[1728263227929,0.06283852,2494.9,2494.7,3.2078]
[1728263228115,0.34341852,2494.9,2494.7,3.2078]
[1728263228322,0.28059,2494.8,2494.7,3.2078]
[1728263228627,0.34343183,2494.8,2494.7,3.2078]
[1728263228824,0.28061,2494.7,2494.3,1.1786]
[1728263229427,0.28062,2494.6,2494.3,1.1786]
[1728263229726,3.85,2494.8,2494.1,3.2078]
[1728263229916,0.28063,2494.5,2494.1,3.2078]
[1728263230220,1.1779,2494.7,2494.1,3.2078]
[1728263230423,0.28064,2494.4,2494.1,3.2078]
[1728263230921,0.28067,2494.2,2493.7,1.212]
[1728263231120,0.28069,2494.0,2493.4,1.2059]
[1728263231323,1.1779,2494.1,2493.4,1.2059]
[1728263231820,0.28065,2494.3,2493.6,3.2078]
[1728263232016,0.28067,2494.2,2493.6,3.2078]
[1728263232216,8.2357,2494.5,2493.6,3.2078]
[1728263232622,0.28066,2494.2,2493.6,3.2078]
[1728263233026,4.3857,2494.5,2493.6,3.2078]
[1728263233230,3.4884,2494.8,2494.0,0.28067]
[1728263233534,0.28061,2494.7,2494.1,2.3133]
[1728263233829,0.2806,2494.8,2494.1,2.3133]
[1728263234231,6.7478,2495.0,2494.1,2.3133]
[1728263234432,0.2806,2494.7,2494.1,2.3133]
[1728263235359,6.7478,2495.0,2493.9,3.2078]
[1728263235360,0.28065,2494.3,2493.9,3.2078]
[1728263235667,0.28065,2494.3,2493.6,5.6306]
[1728263235668,0.28066,2494.3,2493.6,5.6306]
[1728263236160,0.28061,2494.7,2494.0,3.2078]
[1728263236362,0.2806,2494.8,2494.0,3.2078]
[1728263236852,0.28061,2494.7,2494.0,3.2078]
[1728263237060,0.28064,2494.4,2494.0,3.2078]
[1728263237256,0.28063,2494.5,2494.0,3.2078]
[1728263237751,0.28062,2494.6,2494.0,3.2078]
[1728263238553,0.28061,2494.7,2494.0,3.2078]
[1728263241155,8.2556,2494.9,2494.0,3.2078]
[1728263241465,0.28066,2494.3,2493.7,3.2078]
[1728263241649,7.0578,2494.6,2493.7,3.2078]
[1728263241848,0.28067,2494.2,2493.7,3.2078]
[1728263242143,0.28065,2494.3,2493.7,3.2078]
[1728263242644,0.28067,2494.2,2493.7,3.2078]
[1728263242938,7.0578,2494.6,2493.7,3.2078]
[1728263243138,0.28064,2494.4,2493.7,3.2078]
[1728263244041,0.28066,2494.2,2493.7,3.2078]
[1728263244545,0.28068,2494.1,2493.7,3.2078]
[1728263244839,0.28068,2494.1,2493.6,2.4228]
[1728263245044,3.85,2494.3,2493.6,2.4228]
[1728263245340,3.2078,2494.6,2493.4,3.2078]
[1728263245341,3.85,2493.7,2493.4,3.2078]
[1728263245545,4.13072,2493.7,2493.4,3.2078]
[1728263246246,0.28072,2493.7,2493.4,3.2078]
[1728263246545,0.48071882,2493.8,2493.4,3.2078]
[1728263246738,0.28069,2493.9,2493.4,3.2078]
[1728263246939,4.13069,2494.0,2493.4,3.2078]
[1728263247139,4.33429047,2494.0,2493.4,3.2078]
[1728263247347,4.13069,2494.0,2493.4,3.2078]
[1728263247654,2.60127,2494.2,2493.4,3.48855]
[1728263248040,2.3206,2494.2,2493.5,0.28074]
[1728263248243,2.3206,2494.2,2493.4,3.48855]
[1728263248244,2.60126,2494.2,2493.4,3.48855]
[1728263248445,2.3206,2494.2,2493.4,3.2078]
[1728263248639,0.28071,2493.8,2493.4,3.2078]
[1728263249443,0.2807,2493.9,2493.4,3.2078]
[1728263249844,4.05321924,2494.0,2493.4,3.2078]
[1728263250145,0.28069,2493.9,2493.4,3.2078]
[1728263250347,4.33390924,2494.0,2493.4,3.2078]
[1728263250547,0.2807,2493.9,2493.4,3.2078]
[1728263250742,4.33390924,2494.0,2493.4,3.2078]
[1728263251248,4.05321924,2494.0,2493.4,3.2078]
[1728263251639,4.33390924,2494.0,2493.4,3.2078]
[1728263252539,0.2807,2493.9,2493.4,3.2078]
[1728263252744,4.05321924,2494.0,2493.4,3.2078]
[1728263253042,0.2807,2493.9,2493.4,3.2078]
[1728263253551,4.05321924,2494.0,2493.4,3.2078]
[1728263253552,4.33390924,2494.0,2493.4,3.2078]
[1728263253946,4.05321924,2494.0,2493.4,3.2078]
[1728263254145,0.28069,2493.9,2493.4,3.2078]
[1728263254345,4.33390924,2494.0,2493.4,3.2078]
[1728263255246,4.05321924,2494.0,2493.4,3.2078]
[1728263255441,2.3206,2494.2,2493.4,3.2078]
[1728263255646,2.3206,2494.2,2493.5,1.1503]
[1728263256062,2.3206,2494.2,2493.5,1.43104]
[1728263257046,2.3206,2494.2,2493.5,1.1503]
[1728263257353,2.3206,2494.2,2493.7,3.2078]
[1728263258949,2.60126,2494.2,2493.7,3.2078]
[1728263259150,2.3206,2494.2,2493.7,3.2078]
[1728263259354,7.0578,2494.6,2493.9,0.28069]
[1728263259648,7.0578,2494.6,2493.8,2.4643]
[1728263259649,0.28064,2494.4,2493.8,2.4643]
[1728263259855,0.28063,2494.5,2493.8,2.4643]
[1728263260154,7.0578,2494.6,2493.8,2.4643]
[1728263260155,0.28066,2494.2,2493.8,2.4643]
[1728263260456,3.13,2494.1,2493.8,2.4643]
[1728263261648,0.28072,2493.8,2493.4,3.2078]
[1728263261951,3.13,2493.5,2493.4,3.2078]
[1728263263152,3.41074,2493.5,2493.4,3.2078]
[1728263263356,7.1404,2493.5,2493.1,2.4643]
[1728263263572,3.13,2493.5,2493.1,2.4643]
[1728263265252,3.41074,2493.5,2493.1,2.4643]
[1728263265749,3.13,2493.3,2493.1,2.4643]
[1728263265956,3.13,2493.3,2492.7,3.2078]
[1728263266148,3.13,2493.3,2492.4,1.1838]
[1728263266149,3.13,2492.8,2492.6,1.2332]
[1728263266452,3.13,2492.8,2492.4,5.53]
[1728263266453,3.41082,2492.8,2492.4,1.1384]
[1728263266659,3.13,2492.5,2492.4,1.1384]
[1728263267547,7.142,2492.5,2492.1,3.2078]
[1728263267750,3.2078,2492.7,2492.1,3.2078]
[1728263267751,3.13,2492.2,2492.1,3.2078]
[1728263268254,3.13,2492.2,2491.9,1.2332]
[1728263269364,0.20275504,2492.5,2491.9,1.2332]
[1728263269365,3.13,2492.4,2491.9,1.2332]
[1728263270353,0.28086,2492.4,2491.9,1.2332]
[1728263270555,0.28086,2492.5,2491.9,1.2332]
[1728263270757,5.0231,2492.6,2491.9,1.2332]
[1728263270758,5.22485086,2492.6,2491.9,1.2332]
[1728263270960,0.2809,2492.1,2491.8,1.1384]
[1728263271158,0.28093,2491.9,2491.7,3.2078]
[1728263271356,3.48872,2491.9,2491.4,2.4712]
[1728263271558,4.70252,2491.9,2491.4,2.4712]
[1728263271759,4.4216,2491.9,2491.4,2.4712]
[1728263271965,1.2138,2491.9,2491.4,2.4712]
[1728263273964,1.49473,2491.9,2491.4,2.4712]
[1728263274161,1.2138,2491.9,2490.9,3.2078]
[1728263274460,1.2138,2491.9,2489.5,2.41427531]
[1728263274461,3.86,2491.1,2490.6,2.3909]
[1728263274660,3.86,2490.8,2490.3,3.2078]
[1728263274861,3.86,2490.5,2490.2,3.2078]
[1728263275064,3.86,2490.5,2489.9,3.48894]
[1728263275759,3.86,2490.5,2489.9,3.2078]
[1728263276060,3.86,2490.5,2489.9,3.48894]
[1728263276270,3.86,2490.5,2489.9,3.2078]
[1728263276765,3.86,2490.8,2490.0,0.28113]
[1728263276969,3.86,2490.8,2490.2,0.28111]
[1728263277157,3.86,2490.8,2489.9,3.2078]
[1728263277158,3.86,2490.8,2490.3,4.7266]
[1728263277458,2.472,2491.3,2490.3,4.7266]
[1728263277459,7.0678,2491.4,2490.7,0.28105]
[1728263277658,0.28095,2491.7,2490.9,3.2078]
[1728263277659,5.0172,2491.7,2490.9,3.2078]
[1728263277859,5.0172,2491.7,2491.0,1.1714]
[1728263280465,5.29814,2491.7,2491.0,1.1714]
[1728263280664,5.0172,2491.7,2491.0,1.1714]
[1728263281263,3.86,2491.1,2490.6,3.2078]
[1728263281473,3.86,2490.7,2490.3,1.2417]
[1728263282469,6.1874,2491.0,2490.5,3.2078]
[1728263282669,3.86,2491.3,2490.4,4.4495]
[1728263282870,3.86,2491.3,2490.7,3.48885]
[1728263283368,1.1725,2491.4,2490.7,3.2078]
[1728263283563,4.14093,2491.9,2491.0,3.2078]
[1728263283874,3.86,2491.6,2491.0,3.2078]
[1728263284070,3.86,2491.6,2491.0,3.48882]
[1728263284258,3.86,2491.6,2491.1,1.1388]
[1728263285172,1.1828,2491.5,2491.0,3.2078]
[1728263285359,3.86,2491.3,2491.0,3.2078]
[1728263285765,2.4193,2491.5,2491.0,3.2078]
[1728263285967,2.70027,2491.5,2491.0,3.2078]
[1728263286168,2.4193,2491.5,2491.0,3.2078]
[1728263286371,0.28099,2491.3,2491.0,3.2078]
[1728263286572,0.281,2491.2,2491.0,3.2078]
[1728263287968,4.14099,2491.3,2491.0,3.2078]
[1728263289176,2.4193,2491.5,2491.0,3.2078]
[1728263290179,3.86,2491.6,2491.0,3.2078]
[1728263291172,2.357,2491.9,2491.0,3.2078]
[1728263291173,6.217,2491.9,2491.0,3.2078]
[1728263291376,3.86,2492.2,2491.6,3.2078]
[1728263291574,0.28094,2491.8,2491.6,3.2078]
[1728263291872,0.28094,2491.7,2491.6,3.2078]
[1728263292073,4.0136,2491.8,2491.6,3.2078]
[1728263292369,1.1478,2492.1,2491.6,3.2078]
[1728263294379,0.28094,2491.8,2491.2,4.3931]
[1728263294576,3.86,2491.9,2491.2,4.3931]
[1728263294881,0.28093,2491.8,2491.2,4.3931]
[1728263295476,3.86,2491.9,2491.2,4.3931]
[1728263295674,1.1478,2492.1,2491.2,4.3931]
[1728263295675,4.14096,2491.6,2491.2,3.2078]
[1728263295984,3.86,2491.8,2491.2,3.2078]
[1728263296182,4.14094,2491.8,2491.2,3.2078]
[1728263296971,3.86,2491.8,2491.2,3.2078]
[1728263297371,4.14093,2491.8,2491.2,3.2078]
[1728263297881,3.86,2491.8,2491.2,3.2078]
[1728263298181,0.28094,2491.7,2491.2,3.2078]
[1728263298771,4.14094,2491.8,2491.2,3.2078]
[1728263299680,3.86,2491.8,2491.2,3.2078]
[1728263300178,0.28093,2491.8,2491.2,3.2078]
[1728263300381,1.1478,2492.1,2491.2,3.2078]
[1728263300581,4.14093,2491.9,2491.2,3.2078]
[1728263301092,0.28094,2491.8,2491.2,3.2078]
[1728263301285,3.86,2491.9,2491.2,3.2078]
[1728263301482,0.28095,2491.7,2491.2,3.2078]
[1728263301991,0.28094,2491.8,2491.2,3.2078]
[1728263302480,3.86,2491.9,2491.2,3.2078]
[1728263302685,1.1478,2492.1,2491.3,0.28098]
[1728263302881,4.4002,2492.3,2491.5,3.2078]
[1728263302882,3.2078,2492.3,2491.5,3.2078]
[1728263303076,16.20116574,2493.3,2491.8,3.2078]
[1728263303077,3.86,2492.7,2491.8,3.2078]
[1728263303287,1.1253,2492.8,2492.1,3.48869]
[1728263303479,1.1253,2492.8,2492.2,2.4343]
[1728263304277,0.28085,2492.5,2492.1,3.2078]
[1728263304474,3.86,2492.7,2492.1,3.2078]
[1728263304683,3.86,2492.4,2491.8,3.2078]
[1728263304875,3.86,2492.1,2491.8,3.2078]
[1728263305184,3.86,2492.4,2491.8,3.2078]
[1728263305388,3.86,2492.4,2491.9,1.19]
[1728263306486,1.1253,2492.8,2492.1,3.48869]
[1728263306682,3.86,2493.1,2492.2,1.206]
[1728263306885,3.86,2493.1,2492.4,3.2078]
[1728263307489,0.2808,2493.0,2492.4,3.2078]
[1728263307790,4.14079,2493.1,2492.4,3.2078]
[1728263308383,0.2808,2493.0,2492.4,3.2078]
[1728263309988,3.86,2493.1,2492.4,3.2078]
[1728263310189,0.2808,2493.0,2492.5,1.1423]
[1728263310589,3.86,2493.1,2492.5,1.1423]
[1728263310793,0.28083,2492.8,2492.4,3.2078]
[1728263311182,7.0678,2493.1,2492.4,3.2078]
[1728263311484,0.28082,2492.8,2492.4,3.2078]
[1728263311679,7.0678,2493.1,2492.4,3.2078]
[1728263311680,0.28081,2492.9,2492.4,3.2078]
[1728263312791,7.0678,2493.1,2492.4,3.2078]
[1728263312979,0.28081,2492.9,2492.4,3.2078]
[1728263313583,0.28081,2492.9,2492.2,1.206]
[1728263314488,0.28082,2492.8,2492.2,1.206]
[1728263314791,7.0678,2493.1,2492.2,1.206]
[1728263314993,0.2808,2493.0,2492.2,1.206]
[1728263315191,0.2808,2493.0,2492.2,1.48688]
[1728263315892,0.2808,2493.0,2492.2,1.206]
[1728263316592,0.2808,2493.0,2492.2,1.48688]
[1728263316786,3.86,2493.1,2492.2,1.48688]
[1728263316987,4.14079,2493.1,2492.4,3.2078]
[1728263317888,3.86,2493.1,2492.4,3.2078]
[1728263318388,0.2808,2493.0,2492.4,3.2078]
[1728263318593,4.14079,2493.1,2492.4,3.2078]
[1728263318796,3.86,2493.1,2492.5,0.28085]
[1728263319092,1.52217,2493.3,2492.7,3.2078]
[1728263319093,3.86,2493.3,2492.7,3.2078]
[1728263319289,0.28074,2493.5,2492.8,2.3395]
[1728263319495,5.30213,2493.6,2492.8,3.79221]
[1728263319685,5.0214,2493.6,2492.8,3.5114]
[1728263319891,5.30213,2493.6,2492.9,0.2808]
[1728263320085,5.0214,2493.6,2492.9,0.2808]
[1728263320390,5.30213,2493.6,2493.0,3.2078]
[1728263320594,1.2006,2493.7,2493.0,3.48859]
[1728263320793,4.9593,2494.0,2493.1,0.28078]
[1728263320991,0.28069,2493.9,2493.0,3.48859]
[1728263321291,5.23999,2494.0,2493.1,0.28078]
[1728263321682,5.23999,2494.0,2493.3,3.2078]
[1728263321886,5.23999,2494.0,2493.4,1.1052]
[1728263321887,4.9593,2494.0,2493.4,1.1052]
[1728263322097,4.9593,2494.0,2493.4,2.3021]
[1728263322298,1.0957,2494.1,2493.6,3.2078]
[1728263322594,4.14066,2494.3,2493.6,3.2078]
[1728263322595,3.86,2494.3,2493.6,3.2078]
[1728263322790,3.86,2494.3,2493.2,3.2078]
[1728263322791,3.86,2493.9,2493.2,3.2078]
[1728263322991,0.28073,2493.6,2493.2,3.2078]
[1728263323204,3.86,2493.7,2493.2,3.2078]
[1728263323386,0.28074,2493.5,2493.2,3.2078]
[1728263323587,0.28073,2493.6,2493.2,3.2078]
[1728263324191,4.14072,2493.7,2493.2,3.2078]
[1728263324386,0.28073,2493.6,2493.2,3.2078]